[Event "*** Titled Tuesday Blitz"]
[Site "Chess.com"]
[Date "2020.11.10"]
[Round "4"]
[White "Chessalary"]
[Black "tylityli"]
[Result "1-0"]
[WhiteElo "2441"]
[BlackElo "2251"]
[TimeControl "180+1"]
[EndTime "10:41:15 PST"]
[Termination "Chessalary won by resignation"]

1. e4 {[%clk 0:03:00.7]} 1... e5 {[%clk 0:02:58.9]} 2. Nf3 {[%clk 0:03:00.7]}
2... Nc6 {[%clk 0:02:57.8]} 3. Bc4 {[%clk 0:03:01.3]} 3... Nf6 {[%clk
0:02:57.1]} 4. d3 {[%clk 0:03:00.1]} 4... Be7 {[%clk 0:02:56.6]} 5. O-O {[%clk
0:03:00.1]} 5... O-O {[%clk 0:02:56.6]} 6. c3 {[%clk 0:02:59.1]} 6... d5 {[%clk
0:02:56.3]} 7. exd5 {[%clk 0:02:59.2]} 7... Nxd5 {[%clk 0:02:56.1]} 8. a4 {[%clk
0:03:00.1]} 8... a5 {[%clk 0:02:53.8]} 9. h3 {[%clk 0:02:59.8]} 9... Nb6 {[%clk
0:02:38.9]} 10. Bb3 {[%clk 0:02:58.9]} 10... Kh8 {[%clk 0:02:32.8]} 11. Qe2
{[%clk 0:02:51.4]} 11... f6 {[%clk 0:02:29]} 12. Nbd2 {[%clk 0:02:46.7]} 12...
Bf5 {[%clk 0:02:25.6]} 13. Ne4 {[%clk 0:02:45.7]} 13... Nd5 {[%clk 0:02:20.6]}
14. Be3 {[%clk 0:02:33.9]} 14... Nxe3 {[%clk 0:02:17.7]} 15. fxe3 {[%clk
0:02:34.8]} 15... Bg6 {[%clk 0:02:14.8]} 16. Rad1 {[%clk 0:02:32.4]} 16... Bh5
{[%clk 0:02:06.6]} 17. Ng3 {[%clk 0:02:21.2]} 17... Bg6 {[%clk 0:02:04.8]} 18.
Nh4 {[%clk 0:02:20.5]} 18... Bf7 {[%clk 0:02:03.5]} 19. Bxf7 {[%clk 0:02:19]}
19... Rxf7 {[%clk 0:02:03.2]} 20. Qh5 {[%clk 0:02:16.8]} 20... Kg8 {[%clk
0:02:02]} 21. Ne4 {[%clk 0:02:08.2]} 21... g6 {[%clk 0:01:57.6]} 22. Qg4 {[%clk
0:01:33.4]} 22... Qc8 {[%clk 0:01:48.5]} 23. Nf5 {[%clk 0:01:25.2]} 23... Kf8
{[%clk 0:01:40.7]} 24. Nh6 {[%clk 0:01:10.5]} 24... Qxg4 {[%clk 0:01:37.5]} 25.
hxg4 {[%clk 0:01:11.4]} 25... Rd8 {[%clk 0:01:28.5]} 26. Nxf7 {[%clk 0:01:10.3]}
26... Kxf7 {[%clk 0:01:27.9]} 27. Ng5+ {[%clk 0:01:10.3]} 27... Ke8 {[%clk
0:01:24.9]} 28. Nxh7 {[%clk 0:01:04.5]} 28... Rd6 {[%clk 0:01:24.5]} 29. d4
{[%clk 0:00:57.4]} 29... exd4 {[%clk 0:01:19.9]} 30. exd4 {[%clk 0:00:58.3]}
30... Kd7 {[%clk 0:01:19]} 31. Rde1 {[%clk 0:00:55.3]} 31... Nd8 {[%clk
0:01:08.8]} 32. Re4 {[%clk 0:00:48.1]} 32... Ne6 {[%clk 0:01:02.3]} 33. Rfe1
{[%clk 0:00:46.3]} 33... Bd8 {[%clk 0:00:57.2]} 34. Rxe6 {[%clk 0:00:41.8]}
34... Rxe6 {[%clk 0:00:56.3]} 35. Nf8+ {[%clk 0:00:40.7]} 35... Kd6 {[%clk
0:00:55.8]} 36. Rxe6+ {[%clk 0:00:39.9]} 36... Kd5 {[%clk 0:00:55.8]} 37. Re8
{[%clk 0:00:40.2]} 1-0

[Event "*** Titled Tuesday Blitz"]
[Site "Chess.com"]
[Date "2020.11.10"]
[Round "4"]
[White "MIJuanReyesRosa"]
[Black "Chuchofrio1"]
[Result "0-1"]
[WhiteElo "2131"]
[BlackElo "2326"]
[TimeControl "180+1"]
[EndTime "10:41:18 PST"]
[Termination "Chuchofrio1 won on time"]

1. d4 {[%clk 0:02:55.8]} 1... d5 {[%clk 0:02:59.6]} 2. c4 {[%clk 0:02:53.6]}
2... e6 {[%clk 0:02:59.7]} 3. Nc3 {[%clk 0:02:53.2]} 3... Nf6 {[%clk 0:02:59.5]}
4. Nf3 {[%clk 0:02:52.9]} 4... c6 {[%clk 0:02:56.4]} 5. e3 {[%clk 0:02:51.6]}
5... Nbd7 {[%clk 0:02:52.9]} 6. Bd3 {[%clk 0:02:50]} 6... Bd6 {[%clk 0:02:52.8]}
7. Qc2 {[%clk 0:02:47.8]} 7... O-O {[%clk 0:02:50.7]} 8. b3 {[%clk 0:02:40.1]}
8... e5 {[%clk 0:02:49.4]} 9. cxd5 {[%clk 0:02:33.9]} 9... cxd5 {[%clk
0:02:36.9]} 10. dxe5 {[%clk 0:02:31.3]} 10... Nxe5 {[%clk 0:02:36.9]} 11. Nxe5
{[%clk 0:02:23.9]} 11... Bxe5 {[%clk 0:02:37.1]} 12. h3 {[%clk 0:01:59.6]} 12...
d4 {[%clk 0:02:34.9]} 13. exd4 {[%clk 0:01:54.1]} 13... Bxd4 {[%clk 0:02:17.5]}
14. O-O {[%clk 0:01:49.7]} 14... Be6 {[%clk 0:02:15.3]} 15. Bb2 {[%clk 0:01:29]}
15... Rc8 {[%clk 0:02:15]} 16. Rac1 {[%clk 0:01:28.8]} 16... Nd5 {[%clk
0:02:13]} 17. Qd2 {[%clk 0:00:55.7]} 17... Nxc3 {[%clk 0:01:55.7]} 18. Bxc3
{[%clk 0:00:54]} 18... Bxc3 {[%clk 0:01:55.9]} 19. Rxc3 {[%clk 0:00:50.9]} 19...
Qf6 {[%clk 0:01:55.9]} 20. Rxc8 {[%clk 0:00:39]} 20... Rxc8 {[%clk 0:01:54.7]}
21. Rc1 {[%clk 0:00:38.8]} 21... Rd8 {[%clk 0:01:36.3]} 22. Qe2 {[%clk 0:00:30]}
22... g6 {[%clk 0:01:21.5]} 23. Rc7 {[%clk 0:00:27.1]} 23... Qa1+ {[%clk
0:01:11.6]} 24. Kh2 {[%clk 0:00:25.6]} 24... Qd4 {[%clk 0:01:11.3]} 25. Bc4
{[%clk 0:00:18.8]} 25... Qd6+ {[%clk 0:01:10.4]} 26. g3 {[%clk 0:00:10.3]} 26...
Qxc7 {[%clk 0:01:09.4]} 27. Bxe6 {[%clk 0:00:11.2]} 27... fxe6 {[%clk
0:01:08.9]} 28. Qxe6+ {[%clk 0:00:11.4]} 28... Qf7 {[%clk 0:01:08.9]} 29. h4
{[%clk 0:00:12.1]} 29... Qxe6 {[%clk 0:01:08.7]} 30. h5 {[%clk 0:00:07.1]} 30...
Rd2 {[%clk 0:01:07.7]} 0-1

[Event "*** Titled Tuesday Blitz"]
[Site "Chess.com"]
[Date "2020.11.10"]
[Round "4"]
[White "ajedrezhoy"]
[Black "mikheeva86"]
[Result "1-0"]
[WhiteElo "2229"]
[BlackElo "1995"]
[TimeControl "180+1"]
[EndTime "10:41:21 PST"]
[Termination "ajedrezhoy won on time"]

1. g3 {[%clk 0:03:00.9]} 1... d5 {[%clk 0:02:58.4]} 2. Bg2 {[%clk 0:02:59.7]}
2... e5 {[%clk 0:02:56.3]} 3. Nf3 {[%clk 0:02:57.6]} 3... e4 {[%clk 0:02:46.2]}
4. Nd4 {[%clk 0:02:53.7]} 4... c5 {[%clk 0:02:44]} 5. Nb3 {[%clk 0:02:53.2]}
5... Nc6 {[%clk 0:02:40.9]} 6. d3 {[%clk 0:02:52.4]} 6... exd3 {[%clk
0:02:34.9]} 7. cxd3 {[%clk 0:02:51.8]} 7... Be6 {[%clk 0:02:27.6]} 8. O-O {[%clk
0:02:50.8]} 8... Nf6 {[%clk 0:02:12.2]} 9. Nc3 {[%clk 0:02:49.3]} 9... Be7
{[%clk 0:02:08.5]} 10. Bg5 {[%clk 0:02:48.5]} 10... c4 {[%clk 0:01:41.9]} 11.
dxc4 {[%clk 0:02:45]} 11... dxc4 {[%clk 0:01:41.1]} 12. Qxd8+ {[%clk 0:02:43.2]}
12... Rxd8 {[%clk 0:01:39.6]} 13. Bxc6+ {[%clk 0:02:37.7]} 13... bxc6 {[%clk
0:01:37.8]} 14. Na5 {[%clk 0:02:36.8]} 14... Rc8 {[%clk 0:01:09.8]} 15. Rac1
{[%clk 0:02:20.3]} 15... Bb4 {[%clk 0:00:54.3]} 16. Bxf6 {[%clk 0:02:19.1]}
16... gxf6 {[%clk 0:00:52.9]} 17. Ne4 {[%clk 0:02:10]} 17... Bxa5 {[%clk
0:00:51.7]} 18. Nd6+ {[%clk 0:02:09.5]} 18... Kd7 {[%clk 0:00:50]} 19. Rfd1
{[%clk 0:02:00.7]} 19... Kc7 {[%clk 0:00:34.5]} 20. Nxc4 {[%clk 0:01:42.6]}
20... Bxc4 {[%clk 0:00:33.1]} 21. Rxc4 {[%clk 0:01:42.5]} 21... Rcd8 {[%clk
0:00:28]} 22. Rdc1 {[%clk 0:01:42.3]} 22... Rd6 {[%clk 0:00:23.7]} 23. Kg2
{[%clk 0:01:39.1]} 23... Rb8 {[%clk 0:00:17.7]} 24. b3 {[%clk 0:01:36]} 24...
Rb4 {[%clk 0:00:16.4]} 25. Rc5 {[%clk 0:01:35.5]} 25... Bb6 {[%clk 0:00:14.3]}
26. Rh5 {[%clk 0:01:34.1]} 26... Re4 {[%clk 0:00:10.4]} 27. e3 {[%clk
0:01:32.1]} 27... Rd2 {[%clk 0:00:08.8]} 28. Kf3 {[%clk 0:01:31.1]} 28... Re5
{[%clk 0:00:06.4]} 29. Rxh7 {[%clk 0:01:29.8]} 29... Rf5+ {[%clk 0:00:06]} 30.
Kg4 {[%clk 0:01:27]} 30... Rdxf2 {[%clk 0:00:05]} 31. Rxf7+ {[%clk 0:01:26.3]}
31... Kd6 {[%clk 0:00:04.3]} 32. h4 {[%clk 0:01:14.6]} 32... Bxe3 {[%clk
0:00:03.1]} 33. Rc3 {[%clk 0:01:13.5]} 33... Bh6 {[%clk 0:00:01.9]} 34. Rxa7
{[%clk 0:01:10.2]} 1-0

[Event "*** Titled Tuesday Blitz"]
[Site "Chess.com"]
[Date "2020.11.10"]
[Round "4"]
[White "littleplotkin"]
[Black "Gulkov_Igor"]
[Result "1-0"]
[WhiteElo "2649"]
[BlackElo "2463"]
[TimeControl "180+1"]
[EndTime "10:41:23 PST"]
[Termination "littleplotkin won by resignation"]

1. d4 {[%clk 0:03:00.9]} 1... Nf6 {[%clk 0:02:59.2]} 2. Nf3 {[%clk 0:03:01.8]}
2... g6 {[%clk 0:02:58.7]} 3. Nc3 {[%clk 0:03:01.4]} 3... d5 {[%clk 0:02:57.6]}
4. Bg5 {[%clk 0:02:57.5]} 4... Bg7 {[%clk 0:02:57.4]} 5. e3 {[%clk 0:02:54.4]}
5... O-O {[%clk 0:02:56.1]} 6. Bd3 {[%clk 0:02:54.8]} 6... c5 {[%clk 0:02:54.6]}
7. dxc5 {[%clk 0:02:46]} 7... Qa5 {[%clk 0:02:53.9]} 8. O-O {[%clk 0:02:40.2]}
8... Qxc5 {[%clk 0:02:53.3]} 9. e4 {[%clk 0:02:29.6]} 9... dxe4 {[%clk
0:02:46.6]} 10. Nxe4 {[%clk 0:02:30.5]} 10... Nxe4 {[%clk 0:02:44.8]} 11. Bxe4
{[%clk 0:02:31.4]} 11... Bxb2 {[%clk 0:02:41.7]} 12. Rb1 {[%clk 0:02:24.1]}
12... Bg7 {[%clk 0:02:41]} 13. Rxb7 {[%clk 0:02:15.7]} 13... Bxb7 {[%clk
0:02:36.4]} 14. Bxb7 {[%clk 0:02:16.6]} 14... Nc6 {[%clk 0:02:36.5]} 15. Qd7
{[%clk 0:01:34]} 15... Ne5 {[%clk 0:02:24]} 16. Nxe5 {[%clk 0:01:33.1]} 16...
Qxe5 {[%clk 0:01:52.4]} 17. Bxa8 {[%clk 0:01:29.4]} 17... Qxg5 {[%clk
0:01:46.7]} 18. Qxa7 {[%clk 0:01:27.5]} 18... Qd2 {[%clk 0:01:37.1]} 19. Be4
{[%clk 0:01:19.2]} 19... e6 {[%clk 0:01:13.2]} 20. a4 {[%clk 0:01:15.3]} 20...
Bd4 {[%clk 0:01:11.8]} 21. Qb7 {[%clk 0:01:13.1]} 21... Qf4 {[%clk 0:01:04.4]}
22. g3 {[%clk 0:01:05.7]} 22... Qe5 {[%clk 0:00:57.3]} 23. Bd3 {[%clk
0:01:05.4]} 23... Rb8 {[%clk 0:00:54.4]} 24. Qc6 {[%clk 0:01:02.3]} 24... Bc5
{[%clk 0:00:39]} 25. a5 {[%clk 0:00:59.8]} 25... Qd4 {[%clk 0:00:39.1]} 26. a6
{[%clk 0:00:58.5]} 26... Kg7 {[%clk 0:00:36.1]} 27. h4 {[%clk 0:00:55.4]} 27...
h5 {[%clk 0:00:34.2]} 28. Kg2 {[%clk 0:00:55.4]} 28... Rb2 {[%clk 0:00:28.2]}
29. Qe4 {[%clk 0:00:50.7]} 29... Qxe4+ {[%clk 0:00:22]} 30. Bxe4 {[%clk
0:00:51]} 30... Ra2 {[%clk 0:00:22.4]} 31. Bd3 {[%clk 0:00:51.5]} 31... f5
{[%clk 0:00:21.8]} 32. Rb1 {[%clk 0:00:52]} 32... e5 {[%clk 0:00:21.2]} 33. Rb7+
{[%clk 0:00:52.9]} 33... Kf6 {[%clk 0:00:20.5]} 34. Bc4 {[%clk 0:00:52.3]} 34...
e4 {[%clk 0:00:19.9]} 35. Bxa2 {[%clk 0:00:51.7]} 1-0

[Event "*** Titled Tuesday Blitz"]
[Site "Chess.com"]
[Date "2020.11.10"]
[Round "4"]
[White "vladislavkovalev"]
[Black "Obito24"]
[Result "1-0"]
[WhiteElo "2863"]
[BlackElo "2587"]
[TimeControl "180+1"]
[EndTime "10:41:24 PST"]
[Termination "vladislavkovalev won by resignation"]

1. e4 {[%clk 0:03:00.9]} 1... e5 {[%clk 0:02:54.6]} 2. Nf3 {[%clk 0:03:00.9]}
2... Nc6 {[%clk 0:02:54.4]} 3. Bb5 {[%clk 0:02:58.7]} 3... a6 {[%clk 0:02:54]}
4. Ba4 {[%clk 0:02:59.5]} 4... Nf6 {[%clk 0:02:53.6]} 5. O-O {[%clk 0:03:00.1]}
5... b5 {[%clk 0:02:54]} 6. Bb3 {[%clk 0:03:00.1]} 6... Be7 {[%clk 0:02:54.3]}
7. d4 {[%clk 0:02:55.6]} 7... exd4 {[%clk 0:02:53.9]} 8. e5 {[%clk 0:02:52.8]}
8... Ne4 {[%clk 0:02:52.9]} 9. Bd5 {[%clk 0:02:52.5]} 9... Nc5 {[%clk
0:02:50.6]} 10. Nxd4 {[%clk 0:02:51.3]} 10... Bb7 {[%clk 0:02:39.8]} 11. Nf5
{[%clk 0:02:39.6]} 11... O-O {[%clk 0:02:38.2]} 12. Qg4 {[%clk 0:02:29.2]} 12...
g6 {[%clk 0:02:26.7]} 13. Re1 {[%clk 0:02:15.2]} 13... Ne6 {[%clk 0:01:35.8]}
14. Nc3 {[%clk 0:02:01.8]} 14... b4 {[%clk 0:01:27.4]} 15. Na4 {[%clk 0:01:28]}
15... a5 {[%clk 0:01:06.6]} 16. Bh6 {[%clk 0:01:19.9]} 16... Re8 {[%clk
0:01:06.1]} 17. Rad1 {[%clk 0:01:20.5]} 17... Bf8 {[%clk 0:00:50.3]} 18. Bxf8
{[%clk 0:01:19.4]} 18... Kxf8 {[%clk 0:00:38.3]} 19. Ng3 {[%clk 0:01:12.4]}
19... h5 {[%clk 0:00:34.3]} 20. Qf3 {[%clk 0:00:52.2]} 20... Qg5 {[%clk
0:00:28.4]} 21. Bxe6 {[%clk 0:00:46.7]} 21... dxe6 {[%clk 0:00:22.7]} 22. Nc5
{[%clk 0:00:44.8]} 22... Nxe5 {[%clk 0:00:11.4]} 23. Qxb7 {[%clk 0:00:42.8]}
23... h4 {[%clk 0:00:11.3]} 24. Rxe5 {[%clk 0:00:37.9]} 24... Qxe5 {[%clk
0:00:10.2]} 25. Nd7+ {[%clk 0:00:37.8]} 1-0

[Event "*** Titled Tuesday Blitz"]
[Site "Chess.com"]
[Date "2020.11.10"]
[Round "4"]
[White "zurzan"]
[Black "kasparicy"]
[Result "0-1"]
[WhiteElo "2048"]
[BlackElo "2382"]
[TimeControl "180+1"]
[EndTime "10:41:26 PST"]
[Termination "kasparicy won on time"]

1. f4 {[%clk 0:03:00.9]} 1... e5 {[%clk 0:02:59.6]} 2. fxe5 {[%clk 0:03:00.4]}
2... d6 {[%clk 0:03:00.2]} 3. exd6 {[%clk 0:03:01.3]} 3... Bxd6 {[%clk
0:03:00.7]} 4. Nf3 {[%clk 0:03:02.2]} 4... Nf6 {[%clk 0:03:00.9]} 5. Nc3 {[%clk
0:03:01.1]} 5... Ng4 {[%clk 0:03:00.4]} 6. Ne4 {[%clk 0:02:53.1]} 6... Nxh2
{[%clk 0:02:55.5]} 7. Nxd6+ {[%clk 0:02:49]} 7... Qxd6 {[%clk 0:02:55.2]} 8. d4
{[%clk 0:02:28.8]} 8... Qg3+ {[%clk 0:02:53.2]} 9. Kd2 {[%clk 0:02:28]} 9... Ng4
{[%clk 0:02:49.8]} 10. Qe1 {[%clk 0:02:13.2]} 10... Nf2 {[%clk 0:02:41.4]} 11.
Rh2 {[%clk 0:02:00.8]} 11... Nc6 {[%clk 0:02:36]} 12. c3 {[%clk 0:01:59.7]}
12... Bg4 {[%clk 0:02:26.8]} 13. e4 {[%clk 0:01:22.2]} 13... Bxf3 {[%clk
0:02:24.7]} 14. gxf3 {[%clk 0:01:21.1]} 14... Qxh2 {[%clk 0:02:24.9]} 15. Be2
{[%clk 0:01:15.5]} 15... O-O-O {[%clk 0:02:22.8]} 16. Kc2 {[%clk 0:01:09.7]}
16... f5 {[%clk 0:02:20.3]} 17. e5 {[%clk 0:01:04.9]} 17... Nh1 {[%clk
0:01:46.3]} 18. Bd2 {[%clk 0:00:55.5]} 18... Ng3 {[%clk 0:01:34.8]} 19. Bb5
{[%clk 0:00:53.7]} 19... Nxd4+ {[%clk 0:01:27.3]} 20. cxd4 {[%clk 0:00:51.9]}
20... Rxd4 {[%clk 0:01:28.2]} 21. e6 {[%clk 0:00:42.4]} 21... c6 {[%clk
0:01:05.1]} 22. e7 {[%clk 0:00:26.2]} 22... Kd7 {[%clk 0:01:04.3]} 23. Bd3
{[%clk 0:00:12.2]} 23... Re8 {[%clk 0:01:00.6]} 24. Kc3 {[%clk 0:00:05.3]} 24...
Rxe7 {[%clk 0:00:55]} 25. Be3 {[%clk 0:00:05]} 25... Rd5 {[%clk 0:00:40.6]} 26.
Rd1 {[%clk 0:00:04.2]} 26... f4 {[%clk 0:00:40.8]} 0-1

[Event "*** Titled Tuesday Blitz"]
[Site "Chess.com"]
[Date "2020.11.10"]
[Round "4"]
[White "Sergey85Rodchenkov"]
[Black "Kaua18"]
[Result "1-0"]
[WhiteElo "2460"]
[BlackElo "2291"]
[TimeControl "180+1"]
[EndTime "10:41:33 PST"]
[Termination "Sergey85Rodchenkov won by resignation"]

1. e4 {[%clk 0:03:00.9]} 1... c5 {[%clk 0:02:57.4]} 2. Nf3 {[%clk 0:03:00.7]}
2... Nc6 {[%clk 0:02:57.3]} 3. d4 {[%clk 0:02:59.5]} 3... cxd4 {[%clk
0:02:58.2]} 4. Nxd4 {[%clk 0:02:58.9]} 4... Nf6 {[%clk 0:02:58.8]} 5. Nc3 {[%clk
0:02:58.1]} 5... e5 {[%clk 0:02:59.1]} 6. Nb3 {[%clk 0:02:58.1]} 6... Bb4 {[%clk
0:02:59]} 7. Bc4 {[%clk 0:02:58.6]} 7... O-O {[%clk 0:02:58.1]} 8. O-O {[%clk
0:02:58]} 8... Bxc3 {[%clk 0:02:58.2]} 9. bxc3 {[%clk 0:02:58.4]} 9... Nxe4
{[%clk 0:02:58.6]} 10. Ba3 {[%clk 0:02:58.5]} 10... d6 {[%clk 0:02:52.7]} 11.
Qd3 {[%clk 0:02:55.6]} 11... Bf5 {[%clk 0:02:51.2]} 12. Rae1 {[%clk 0:02:54.7]}
12... Ne7 {[%clk 0:02:27]} 13. Rxe4 {[%clk 0:02:47.5]} 13... d5 {[%clk
0:02:26.9]} 14. Bxe7 {[%clk 0:02:46]} 14... Qxe7 {[%clk 0:02:27.8]} 15. Bxd5
{[%clk 0:02:45]} 15... Rfd8 {[%clk 0:02:25.7]} 16. c4 {[%clk 0:02:44.4]} 16...
Rac8 {[%clk 0:02:18.1]} 17. f4 {[%clk 0:02:36]} 17... Bxe4 {[%clk 0:02:09.9]}
18. Qxe4 {[%clk 0:02:34.8]} 18... Rf8 {[%clk 0:01:49.3]} 19. fxe5 {[%clk
0:02:27]} 19... b6 {[%clk 0:01:48.3]} 20. Nd4 {[%clk 0:02:23.4]} 20... Rce8
{[%clk 0:01:44.5]} 21. e6 {[%clk 0:02:19.2]} 21... f6 {[%clk 0:01:44.5]} 22. h3
{[%clk 0:02:10.3]} 22... Kh8 {[%clk 0:01:44.8]} 23. Kh1 {[%clk 0:02:06.7]} 23...
Qa3 {[%clk 0:01:21.6]} 24. Qg4 {[%clk 0:01:43.4]} 24... Qxa2 {[%clk 0:01:12.7]}
25. Nf5 {[%clk 0:01:39.2]} 25... g6 {[%clk 0:01:13]} 26. Nd6 {[%clk 0:01:38.3]}
26... Re7 {[%clk 0:01:09.5]} 27. Nf7+ {[%clk 0:01:37.8]} 27... Kg7 {[%clk
0:00:38.9]} 28. Qf4 {[%clk 0:01:35.1]} 28... Qb2 {[%clk 0:00:35]} 29. Rf3 {[%clk
0:01:23.1]} 29... b5 {[%clk 0:00:19.9]} 30. c3 {[%clk 0:01:20.8]} 30... Qb1+
{[%clk 0:00:08.3]} 31. Kh2 {[%clk 0:01:04.6]} 31... h5 {[%clk 0:00:02.4]} 32.
Qxf6+ {[%clk 0:01:01.6]} 32... Kh7 {[%clk 0:00:02.7]} 33. Ng5+ {[%clk
0:00:56.6]} 33... Kh6 {[%clk 0:00:02.6]} 34. Qxf8+ {[%clk 0:00:56.4]} 1-0

[Event "*** Titled Tuesday Blitz"]
[Site "Chess.com"]
[Date "2020.11.10"]
[Round "4"]
[White "Tomekas1"]
[Black "DenLaz"]
[Result "0-1"]
[WhiteElo "2441"]
[BlackElo "2750"]
[TimeControl "180+1"]
[EndTime "10:41:34 PST"]
[Termination "DenLaz won by checkmate"]

1. e4 {[%clk 0:03:00.9]} 1... e5 {[%clk 0:02:59.8]} 2. Nf3 {[%clk 0:03:01.2]}
2... Nc6 {[%clk 0:02:59.7]} 3. Bc4 {[%clk 0:03:01.5]} 3... Bc5 {[%clk
0:02:59.2]} 4. O-O {[%clk 0:03:01.5]} 4... Nf6 {[%clk 0:02:59.5]} 5. d4 {[%clk
0:03:01.9]} 5... Bxd4 {[%clk 0:02:59.1]} 6. Nxd4 {[%clk 0:03:01.1]} 6... Nxd4
{[%clk 0:03:00]} 7. f4 {[%clk 0:03:01.1]} 7... d6 {[%clk 0:03:00.4]} 8. fxe5
{[%clk 0:03:01.5]} 8... dxe5 {[%clk 0:03:01.3]} 9. Bg5 {[%clk 0:03:01.8]} 9...
Qe7 {[%clk 0:03:01.4]} 10. c3 {[%clk 0:03:02.2]} 10... Ne6 {[%clk 0:02:53.8]}
11. Bxf6 {[%clk 0:02:57.8]} 11... gxf6 {[%clk 0:02:53]} 12. Na3 {[%clk
0:02:54.8]} 12... Rg8 {[%clk 0:02:51.2]} 13. Bxe6 {[%clk 0:02:46.2]} 13... Bxe6
{[%clk 0:02:50.2]} 14. Qf3 {[%clk 0:02:42.5]} 14... Rg6 {[%clk 0:02:46.3]} 15.
Qe3 {[%clk 0:02:26.1]} 15... Kf8 {[%clk 0:02:42.1]} 16. Rad1 {[%clk 0:02:22.8]}
16... Kg7 {[%clk 0:02:40.3]} 17. g3 {[%clk 0:02:03.3]} 17... h5 {[%clk
0:02:32.5]} 18. Kh1 {[%clk 0:01:53.1]} 18... Rh8 {[%clk 0:02:22.1]} 19. Qxa7
{[%clk 0:01:43]} 19... Bh3 {[%clk 0:02:02.4]} 20. Rf2 {[%clk 0:01:38]} 20... Qe6
{[%clk 0:01:48.2]} 21. Qe3 {[%clk 0:01:26.7]} 21... Qxa2 {[%clk 0:01:36.4]} 22.
Nb5 {[%clk 0:01:09]} 22... Qa4 {[%clk 0:01:16.7]} 23. Qd3 {[%clk 0:00:59.5]}
23... h4 {[%clk 0:01:16.2]} 24. gxh4 {[%clk 0:00:49.4]} 24... Rxh4 {[%clk
0:01:17.1]} 25. Re1 {[%clk 0:00:32.3]} 25... Qa6 {[%clk 0:01:03.3]} 26. c4
{[%clk 0:00:28.6]} 26... Qc6 {[%clk 0:00:59]} 27. Qd5 {[%clk 0:00:21.2]} 27...
Rhg4 {[%clk 0:00:53.1]} 28. Qxc6 {[%clk 0:00:17.5]} 28... bxc6 {[%clk 0:00:54]}
29. Nxc7 {[%clk 0:00:16.9]} 29... Bg2+ {[%clk 0:00:51.6]} 30. Rxg2 {[%clk
0:00:12]} 30... Rxg2 {[%clk 0:00:52.5]} 31. b4 {[%clk 0:00:12]} 31... Rb2 {[%clk
0:00:51.1]} 32. b5 {[%clk 0:00:11.1]} 32... cxb5 {[%clk 0:00:51.1]} 33. cxb5
{[%clk 0:00:11.4]} 33... Rgg2 {[%clk 0:00:51.4]} 34. Rc1 {[%clk 0:00:10]} 34...
Rxh2+ {[%clk 0:00:51.5]} 35. Kg1 {[%clk 0:00:10]} 35... Rhg2+ {[%clk 0:00:51.7]}
36. Kh1 {[%clk 0:00:10]} 36... Rgd2 {[%clk 0:00:50.5]} 37. Rc6 {[%clk
0:00:08.8]} 37... Rd1# {[%clk 0:00:50.4]} 0-1

[Event "*** Titled Tuesday Blitz"]
[Site "Chess.com"]
[Date "2020.11.10"]
[Round "4"]
[White "Nuvas"]
[Black "petrkostenko"]
[Result "1-0"]
[WhiteElo "2336"]
[BlackElo "2449"]
[TimeControl "180+1"]
[EndTime "10:41:34 PST"]
[Termination "Nuvas won by resignation"]

1. d4 {[%clk 0:02:59.9]} 1... e6 {[%clk 0:03:00.1]} 2. c4 {[%clk 0:02:59.7]}
2... b6 {[%clk 0:03:00.5]} 3. e4 {[%clk 0:02:59.4]} 3... Bb4+ {[%clk 0:02:59]}
4. Nc3 {[%clk 0:02:56.4]} 4... Bb7 {[%clk 0:02:58]} 5. Bd3 {[%clk 0:02:56.5]}
5... f5 {[%clk 0:02:57.4]} 6. Qc2 {[%clk 0:02:04.6]} 6... Nf6 {[%clk 0:02:55]}
7. f3 {[%clk 0:02:04.1]} 7... Nc6 {[%clk 0:01:46.3]} 8. Ne2 {[%clk 0:01:54.4]}
8... fxe4 {[%clk 0:01:45.8]} 9. fxe4 {[%clk 0:01:53.7]} 9... e5 {[%clk
0:01:45.9]} 10. O-O {[%clk 0:01:44.2]} 10... exd4 {[%clk 0:01:36.6]} 11. Nd5
{[%clk 0:01:43.9]} 11... Be7 {[%clk 0:01:36.3]} 12. a3 {[%clk 0:00:33.7]} 12...
O-O {[%clk 0:01:21.9]} 13. b4 {[%clk 0:00:33.2]} 13... d6 {[%clk 0:01:19.5]} 14.
Bb2 {[%clk 0:00:31.5]} 14... Ne5 {[%clk 0:01:18.3]} 15. Nxd4 {[%clk 0:00:31.7]}
15... Qd7 {[%clk 0:01:15.3]} 16. Nf5 {[%clk 0:00:31.8]} 16... Nxd5 {[%clk
0:01:03.7]} 17. exd5 {[%clk 0:00:31.3]} 17... Bf6 {[%clk 0:01:02.7]} 18. Be4
{[%clk 0:00:31.6]} 18... g6 {[%clk 0:01:01.4]} 19. Nd4 {[%clk 0:00:31.8]} 19...
Bh8 {[%clk 0:00:53.2]} 20. Ne6 {[%clk 0:00:30.9]} 20... Rxf1+ {[%clk 0:00:52.9]}
21. Rxf1 {[%clk 0:00:31.8]} 21... c6 {[%clk 0:00:43.5]} 22. Qf2 {[%clk
0:00:31.1]} 22... Qe7 {[%clk 0:00:36.3]} 23. Bxe5 {[%clk 0:00:29.9]} 23... Bxe5
{[%clk 0:00:35.3]} 24. dxc6 {[%clk 0:00:30.4]} 24... Ba6 {[%clk 0:00:31.2]} 25.
c7 {[%clk 0:00:28.3]} 25... Rc8 {[%clk 0:00:29.8]} 26. Bd5 {[%clk 0:00:28.2]}
26... Kh8 {[%clk 0:00:28.8]} 27. Qf7 {[%clk 0:00:27.7]} 27... Qxf7 {[%clk
0:00:28.2]} 28. Rxf7 {[%clk 0:00:28.6]} 28... b5 {[%clk 0:00:21.8]} 29. Rd7
{[%clk 0:00:27.2]} 29... bxc4 {[%clk 0:00:19.7]} 30. Rd8+ {[%clk 0:00:26]} 1-0